fUSD/lending_fUSD_20250330
["ID","MTS","AMOUNT","RATE_DAILY","PERIOD"]
[356862080,1743341449534,-500.0,0.00043999,120]
[356862081,1743341449546,-500.0,0.00043999,120]
[356862082,1743341449557,-500.0,0.00043999,120]
[356862083,1743341449568,-500.0,0.00043999,120]
[356862084,1743341449579,-500.0,0.00043999,120]
[356862085,1743341449591,-500.0,0.00043999,120]
[356862086,1743341449603,-500.0,0.00043999,120]
[356862087,1743341449614,-500.0,0.00043999,120]
[356862088,1743341449626,-500.0,0.00043999,120]
[356862089,1743341449638,-500.0,0.00043999,120]
[356862090,1743341449650,-500.0,0.00043999,120]
[356862091,1743341449662,-500.0,0.00043999,120]
[356862092,1743341449673,-500.0,0.00043999,120]
[356862093,1743341449685,-500.0,0.00043999,120]
[356862094,1743341449697,-500.0,0.00043999,120]
[356862095,1743341449708,-500.0,0.00043999,120]
[356862096,1743341449719,-500.0,0.00043999,120]
[356862097,1743341449731,-621.12607031,0.00043999,120]
[356862098,1743341449742,-500.0,0.00043999,120]
[356862099,1743341449754,-500.0,0.00043999,120]
[356862100,1743341449765,-500.0,0.00043999,120]
[356862101,1743341449776,-500.0,0.00043999,120]
[356862102,1743341449787,-500.0,0.00043999,120]
[356862103,1743341449798,-500.0,0.00043999,120]
[356862104,1743341449810,-500.0,0.00043999,120]
[356862105,1743341449821,-500.0,0.00043999,120]
[356862106,1743341449833,-200.0,0.00043999,120]
[356862107,1743341449845,-150.0,0.00043999,30]
[356862108,1743341449873,-150.0,0.00043999,30]
[356862109,1743341449884,-785.0,0.00044,7]
[356862110,1743341449895,-242.81331533,0.00044,2]
[356862111,1743341449907,-5274126.4161332,0.00044,2]
[356862118,1743342531042,30000.0,0.00033179,40]
[356862141,1743342631462,-250.0,0.00025,2]
[356862142,1743342631471,-340.01792578,0.00026749,2]
[356862143,1743342631480,-170.97,0.00026849,2]
[356862144,1743342631490,-300.0,0.00027,2]
[356862145,1743342631499,-350.0,0.00029,2]
[356862146,1743342631508,-400.0,0.00031,2]
[356862147,1743342631517,-170.97,0.00032646,2]
[356862148,1743342631527,-225.39008775,0.000329,2]
[356862149,1743342631536,-450.0,0.00033,2]
[356862150,1743342631545,-5000.0,0.00033179,2]
[356862151,1743342631554,-259.626449,0.00034825,2]
[356862152,1743342631563,-500.0,0.00035,2]
[356862153,1743342631572,-400.0,0.00036599,2]
[356862154,1743342631581,-4812.0176068,0.000366,2]
[356862155,1743342631593,-15070.35373114,0.000366,2]
[356862156,1743342631602,-550.0,0.00037,2]
[356862157,1743342631611,-4767.91805949,0.000372,103]
[356862158,1743342631620,-170.97,0.00038443,2]
[356862159,1743342631629,-600.0,0.00039,2]
[356862160,1743342631638,-560.0,0.00039177,5]
[356862161,1743342631647,-4767.91805949,0.00039644,118]
[356862162,1743342631656,-296.39,0.00040743,2]
[356862163,1743342631665,-1000.0,0.00040786,2]
[356862164,1743342631674,-250.0,0.00040917,2]
[356862165,1743342631683,-650.0,0.00041,2]
[356862166,1743342631692,-300.2,0.00041081,2]
[356862167,1743342631702,-150.0,0.00041725,7]
[356862168,1743342631711,-161.39,0.00041746,120]
[356862169,1743342631723,-150.0,0.00041937,4]
[356862170,1743342631733,-783.0,0.00041937,5]
[356862171,1743342631742,-435.2753196,0.00042679,4]
[356862172,1743342631752,-500.0,0.00042739,60]
[356862173,1743342631762,-700.0,0.00043,2]
[356862174,1743342631771,-296.39,0.00043007,2]
[356862175,1743342631781,-494.079,0.00043112,66]
[356862176,1743342631790,-152.0,0.00043205,3]
[356862177,1743342631801,-388.6215323,0.00043327,31]
[356862178,1743342631810,-23900.0,0.00043328,2]
[356862180,1743342631820,-638.05605478,0.0004346,2]
[356862182,1743342631829,-663.77940649,0.0004356,2]
[356862184,1743342631838,-2000.0,0.000436,2]
[356862185,1743342631848,-206.833707,0.0004361,120]
[356862186,1743342631857,-2512.68,0.000438,60]
[356862187,1743342631866,-520.0074359,0.00043835,120]
[356862188,1743342631876,-1234.6176,0.0004389,2]
[356862189,1743342631885,-191.70379971,0.000439,13]
[356862190,1743342631895,-880.65104652,0.000439,16]
[356862191,1743342631904,-1276.1121,0.000439,2]
[356862192,1743342631914,-211.71114248,0.00043973,30]
[356862193,1743342631924,-273.3652473,0.00043973,30]
[356862194,1743342631934,-154.40100171,0.00043973,30]
[356862195,1743342631943,-162.42233016,0.00043973,30]
[356862196,1743342631952,-151.29,0.0004399,2]
[356862197,1743342631962,-182.50891526,0.0004399,7]
[356862198,1743342631971,-65678.91267246,0.0004399,30]
[356862199,1743342631980,-675.18503926,0.00043999,30]
[356862201,1743342631989,-152.76451564,0.00043999,120]
[356862203,1743342631999,-825.0,0.00044,7]
[356862205,1743342632009,-753201.49228331,0.00044,2]
[356862208,1743342632021,-275.925,0.00044,2]
[356862210,1743342632033,-143385.75200862,0.00044,2]
[356862215,1743342632068,-757.70112046,0.00044,2]
[356862217,1743342632079,-653.2912439,0.00044,2]
[356862219,1743342632091,-630421.01080861,0.00044,2]
[356862221,1743342632100,-450.0,0.00044,45]
[356862223,1743342632110,-809.75,0.00044,120]
[356862225,1743342632119,-2047.33,0.00044,2]
[356862227,1743342632128,-2999.97,0.00044,2]
[356862229,1743342632137,-3000.0,0.00044,2]
[356862231,1743342632147,-3000.0,0.00044,2]
[356862233,1743342632161,-901.37,0.00044,2]
[356862235,1743342632171,-162.50841698,0.00044,30]
[356862237,1743342632183,-3198.99939015,0.00044,30]
[356862239,1743342632193,-4499.14049395,0.00044,120]
[356862241,1743342632204,-293.30777276,0.00044,120]
[356862243,1743342632214,-300.0,0.00044,120]
[356862264,1743342632393,-382.143062,0.00044,57]
[356862266,1743342632405,-232.50029727,0.00044,30]
[356862268,1743342632414,-2266.08,0.00044,14]
[356862270,1743342632423,-179.92998086,0.00044,30]
[356862272,1743342632437,-73246.14336013,0.00044,4]
[356862274,1743342632447,-1591.80633639,0.00044,5]
[356862276,1743342632456,-200.0,0.00044,7]
[356862278,1743342632465,-312.84,0.00044239,2]
[356862280,1743342632475,-208.21,0.00044239,2]
[356862282,1743342632484,-170.97,0.00044239,2]
[356862284,1743342632493,-159.80765881,0.0004439,120]
[356862286,1743342632503,-248.8745853,0.000445,120]
[356862288,1743342632513,-4767.91805949,0.00044563,120]
[356862290,1743342632522,-1097.0,0.00044891,5]
[356862292,1743342632531,-228.71984016,0.000449,30]
[356862294,1743342632541,-942.79,0.000449,120]
[356862296,1743342632550,-150.0,0.00044919,2]
[356862298,1743342632560,-4000.0,0.00044998,31]
[356862300,1743342632569,-160.00990977,0.00045,30]
[356862302,1743342632578,-1000.0,0.00045,2]
[356862304,1743342632587,-64234.97759768,0.00045,2]
[356862306,1743342632597,-151.0,0.00045,120]
[356862308,1743342632606,-357.22,0.00045,120]
[356862310,1743342632616,-1462.28246654,0.00045,120]
[356862312,1743342632625,-2873.22759097,0.00045,120]
[356862314,1743342632634,-151.0,0.00045,120]
[356862316,1743342632644,-866.94233346,0.00045,120]
[356862318,1743342632653,-224.52591946,0.00045,120]
[356862320,1743342632662,-285.78,0.00045,120]
[356862322,1743342632672,-200.02141539,0.00045,120]
[356862324,1743342632684,-2313.5245397,0.00045,14]
[356862326,1743342632693,-253.40649,0.00045,120]
[356862328,1743342632702,-50000.0,0.00045,60]
[356862330,1743342632712,-24008.97,0.00045,120]
[356862332,1743342632726,-2340.0837165,0.00045,120]
[356862334,1743342632735,-4094.30700466,0.00045,120]
[356862336,1743342632745,-150.0,0.00045,85]
[356862338,1743342632754,-450.0,0.00045,46]
[356862340,1743342632765,-2155.93286107,0.00045,2]
[356862342,1743342632774,-750.0,0.00045,2]
[356862344,1743342632784,-500.0,0.00045205,7]
[356862346,1743342632795,-242.0,0.00045267,30]
[356862348,1743342632804,-296.39,0.00045271,2]
[356862350,1743342632814,-2266.08,0.000453,14]
[356862352,1743342632823,-15662.96347189,0.00045444,2]
[356862354,1743342632832,-285.78,0.000455,120]
[356862356,1743342632842,-24008.97,0.000455,120]
[356862358,1743342632851,-242.0,0.00045734,30]
[356862360,1743342632860,-500.0,0.00045753,10]
[356862362,1743342632869,-1000.0,0.00045885,2]
[356862364,1743342632879,-6158.38926908,0.0004589,120]
[356862366,1743342632888,-1176.53247629,0.000459,119]
[356862368,1743342632898,-13612.65884505,0.00045968,2]
[356862370,1743342632907,-362.75,0.0004598,120]
[356862372,1743342632916,-56490.54,0.00045999,2]
[356862374,1743342632928,-1689.54778988,0.00046,28]
[356862376,1743342632938,-1000.0,0.00046,2]
[356862378,1743342632947,-450.0,0.00046,47]
[356862380,1743342632956,-416.0,0.00046,90]
[356862382,1743342632966,-300.0,0.00046,120]
[356862384,1743342632976,-437.47708535,0.00046,120]
[356862386,1743342632985,-150.0,0.00046003,2]
[356862388,1743342632995,-153.0,0.00046027,90]
[356862390,1743342633005,-153.0,0.00046027,90]
[356862392,1743342633015,-153.0,0.00046027,90]
[356862394,1743342633024,-153.0,0.00046027,90]
[356862396,1743342633033,-153.0,0.00046027,90]
[356862398,1743342633043,-153.0,0.00046027,90]
[356862400,1743342633052,-153.0,0.00046027,90]
[356862402,1743342633062,-153.0,0.00046027,90]
[356862404,1743342633072,-153.0,0.00046027,90]
[356862406,1743342633082,-253.40649,0.000462,120]
[356862408,1743342633090,-157.03,0.000462,39]
[356862410,1743342633101,-157.03,0.000462,39]
[356862412,1743342633110,-157.03,0.000462,39]
[356862414,1743342633120,-242.0,0.00046201,30]
[356862416,1743342633129,-1274.48939825,0.000463,120]
[356862418,1743342633139,-242.80182257,0.000463,2]
[356862420,1743342633149,-2000.0,0.000463,2]
[356862422,1743342633158,-285.78,0.000463,120]
[356862424,1743342633168,-24008.97,0.000463,120]
[356862426,1743342633181,-500.0,0.00046301,13]
[356862428,1743342633190,-492.82485914,0.00046387,2]
[356862430,1743342633200,-3000.0,0.00046575,120]
[356862432,1743342633209,-2266.08,0.000466,14]
[356862434,1743342633219,-242.0,0.00046668,30]
[356862436,1743342633228,-424.14663926,0.00046668,30]
[356862438,1743342633238,-537.54,0.0004683,120]
[356862440,1743342633248,-500.0,0.00046849,16]
[356862442,1743342633257,-4062.2634224,0.00046998,120]
[356862444,1743342633267,-589.46628845,0.00047,30]
[356862446,1743342633276,-1239.44855214,0.00047,120]
[356862448,1743342633286,-450.0,0.00047,48]
[356862450,1743342633296,-800.0,0.00047,2]
[356862452,1743342633306,-150.0,0.00047087,2]
[356862454,1743342633315,-242.0,0.00047134,30]
[356862456,1743342633325,-500.0,0.00047397,19]
[356862458,1743342633335,-253.40649,0.000474,120]
[356862460,1743342633344,-2087.12522,0.0004744,30]
[356862462,1743342633354,-217.98292202,0.000475,120]
[356862464,1743342633364,-296.39,0.00047535,2]
[356862467,1743342633374,-3000.0,0.0004755,30]
[356862468,1743342633384,-5222.71646882,0.000476,2]
[356862470,1743342633393,-242.0,0.00047601,30]
[356862472,1743342633402,-313.68053225,0.000478,120]
[356862474,1743342633412,-2000.0,0.0004786,30]
[356862476,1743342633423,-1000.0,0.000479,120]
[356862478,1743342633434,-500.0,0.00047945,22]
[356862480,1743342633443,-3000.0,0.0004796,31]
[356862482,1743342633452,-151.0,0.0004796,14]
[356862484,1743342633461,-151.0,0.0004796,14]
[356862486,1743342633470,-151.0,0.0004796,14]
[356862489,1743342633480,-151.0,0.0004796,14]
[356862491,1743342633490,-9000.0,0.0004796,14]
[356862493,1743342633499,-1096.850263,0.0004796,14]
[356862495,1743342633508,-151.0,0.0004796,14]
[356862497,1743342633518,-1096.850263,0.0004796,14]
[356862499,1743342633528,-296.075494,0.0004796,14]
[356862500,1743342633537,-296.075494,0.0004796,14]
[356862502,1743342633547,-500.0,0.00048,2]
[356862504,1743342633557,-154.0,0.00048,120]
[356862506,1743342633567,-450.0,0.00048,49]
[356862508,1743342633576,-640.11529771,0.00048,60]
[356862510,1743342633585,-1102.0,0.00048,120]
[356862512,1743342633595,-300.0,0.00048,120]
[356862515,1743342633605,-437.47708536,0.00048,120]
[356862517,1743342633615,-654.0,0.00048054,5]
[356862519,1743342633625,-242.0,0.00048068,30]
[356862521,1743342633634,-2266.08,0.000481,14]
[356862522,1743342633643,-150.0,0.00048171,2]
[356862524,1743342633653,-246.90623629,0.00048316,60]
[356862527,1743342633662,-179.07702379,0.00048316,60]
[356862529,1743342633672,-504383.0,0.0004844,30]
[356862530,1743342633683,-151.0,0.0004844,14]
[356862532,1743342633693,-151.0,0.0004844,14]
[356862535,1743342633702,-151.0,0.0004844,14]
[356862536,1743342633713,-151.0,0.0004844,14]
[356862538,1743342633725,-9000.0,0.0004844,14]
[356862540,1743342633734,-9000.0,0.0004844,14]
[356862542,1743342633744,-1096.850263,0.0004844,14]
[356862544,1743342633754,-1096.850263,0.0004844,14]
[356862547,1743342633766,-296.075494,0.0004844,14]
[356862549,1743342633776,-296.075494,0.0004844,14]
[356862551,1743342633786,-500.0,0.00048493,25]
[356862553,1743342633796,-217.80833208,0.0004851,30]
[356862555,1743342633806,-613.42965938,0.000486,120]
[356862557,1743342633817,-186.41058032,0.000486,120]
[356862559,1743342633827,-253.40649,0.000486,120]
[356862560,1743342633837,-151.0,0.000486,14]
[356862562,1743342633846,-2000.0,0.0004865,35]
[356862564,1743342633856,-2000.0,0.0004875,32]
[356862567,1743342633866,-285.65277108,0.000488,120]
[356862569,1743342633876,-2743.57793798,0.000488,120]
[356862571,1743342633886,-1000.0,0.000488,120]
[356862573,1743342633896,-5577.30558001,0.000488,120]
[356862575,1743342633906,-7328.62750037,0.000488,120]
[356862577,1743342633915,-9609.17339664,0.000488,120]
[356862579,1743342633926,-2000.0,0.0004896,45]
[356862581,1743342633936,-184.98333803,0.0004898,120]
[356862583,1743342633945,-41876.69817623,0.00049,2]
[356862584,1743342633955,-178.7504934,0.00049,30]
[356862586,1743342633964,-164.27491956,0.00049,120]
[356862588,1743342633974,-725.90426198,0.00049,120]
[356862590,1743342633984,-254.57309283,0.00049,120]
[356862592,1743342633994,-187.61697488,0.00049,120]
[356862593,1743342634004,-208.82076559,0.00049,120]
[356862594,1743342634013,-911.0,0.00049,120]
[356862595,1743342634023,-1040.1036413,0.00049,120]
[356862596,1743342634033,-3626.90169137,0.00049,120]
[356862597,1743342634043,-450.0,0.00049,50]
[356862598,1743342634053,-850.0,0.00049,2]
[356862599,1743342634062,-2000.0,0.00049,2]
[356862600,1743342634073,-865.98751316,0.00049004,120]
[356862601,1743342634083,-500.0,0.00049041,28]
[356862602,1743342634094,-150.0,0.00049255,2]
[356862603,1743342634104,-285.78,0.000493,120]
[356862604,1743342634115,-24008.97,0.000493,120]
[356862605,1743342634125,-500.0,0.00049315,120]
[356862606,1743342634135,-362.67579997,0.00049315,120]
[356862607,1743342634145,-500.0,0.00049315,120]
[356862608,1743342634155,-500.0,0.00049315,120]
[356862609,1743342634165,-7822.2573601,0.00049346,120]
[356862610,1743342634175,-4650.11596475,0.000494,120]
[356862611,1743342634189,-500.0,0.000494,120]
[356862612,1743342634199,-4767.91805949,0.00049481,120]
[356862613,1743342634209,-445.12720637,0.000495,120]
[356862614,1743342634219,-183.39422422,0.000495,120]
[356862615,1743342634230,-500.0,0.00049589,31]
[356862616,1743342634241,-6883.66467487,0.00049678,60]
[356862617,1743342634251,-3060.7993,0.0004969,31]
[356862618,1743342634262,-296.39,0.00049799,2]
[356862619,1743342634272,-259.79279271,0.000498,30]
[356862620,1743342634282,-366.96456477,0.000498,30]
[356862621,1743342634292,-209.0,0.000498,120]
[356862622,1743342634302,-253.40649,0.000498,120]
[356862623,1743342634312,-2266.08,0.000498,14]
[356862624,1743342634322,-159.86541149,0.00049863,120]
[356862625,1743342634332,-2000.0,0.0004989,35]
[356862626,1743342634342,-209682.02369035,0.000499,7]
[356862627,1743342634351,-161.86788171,0.000499,2]
[356862628,1743342634360,-2213.21361932,0.000499,2]
[356862629,1743342634370,-155.30806658,0.000499,2]
[356862630,1743342634380,-2794.84211039,0.000499,2]
[356862631,1743342634390,-19700.34118979,0.0004995,30]
[356862632,1743342634400,-2000.0,0.0004995,35]
[356862633,1743342634410,-40648.76905495,0.0004999,2]
[356862634,1743342634419,-26691.48511431,0.00049999,120]
[356862635,1743342634431,-2629.31179761,0.0005,5]
[356862636,1743342634440,-210.30321138,0.0005,2]
[356862637,1743342634450,-1133.68028794,0.0005,2]
[356862638,1743342634460,-1513.74514759,0.0005,2]
[356862639,1743342634470,-500.0,0.0005,30]
[356862640,1743342634479,-1209.22542567,0.0005,10]
[356862641,1743342634489,-500.0,0.0005,5]
[356862642,1743342634499,-672.06812977,0.0005,30]
[356862643,1743342634617,-260.7218317,0.0005,30]
[356862644,1743342634627,-542.36781396,0.0005,7]
[356862645,1743342634636,-336804.5142363,0.0005,10]
[356862646,1743342634646,-150.0,0.0005,7]
[356862647,1743342634655,-1110.78559159,0.0005,120]
[356862648,1743342634665,-999.72062819,0.0005,120]
[356862649,1743342634675,-700.0,0.0005,120]
[356862650,1743342634687,-1440.84819241,0.0005,120]
[356862651,1743342634697,-1858.79989591,0.0005,120]
[356862652,1743342634707,-1186.59349924,0.0005,120]
[356862653,1743342634716,-3008.74657519,0.0005,120]
[356862654,1743342634729,-282.91641003,0.0005,120]
[356862655,1743342634739,-212.47174465,0.0005,120]
[356862656,1743342634748,-701.84613141,0.0005,120]
[356862657,1743342634758,-363.89235765,0.0005,120]
[356862658,1743342634767,-205.9357655,0.0005,120]
[356862659,1743342634777,-585.0,0.0005,120]
[356862660,1743342634786,-1102.0,0.0005,120]
[356862661,1743342634795,-583.95934499,0.0005,60]
[356862662,1743342634804,-3125.46473654,0.0005,60]
[356862663,1743342634815,-300.0,0.0005,120]
[356862664,1743342634824,-50000.0,0.0005,60]
[356862665,1743342634835,-1083.65925066,0.0005,120]
[356862666,1743342634844,-1252724.01742555,0.0005,50]
[356862667,1743342634854,-195.63130892,0.0005,50]
[356862668,1743342634863,-206.67,0.0005,120]
[356862669,1743342634872,-2808.71086768,0.0005,120]
[356862670,1743342634882,-200.0,0.0005,120]
[356862671,1743342634892,-151.0,0.0005,120]
[356862672,1743342634901,-151.0,0.0005,120]
[356862673,1743342634911,-288.0,0.0005,120]
[356862674,1743342634920,-151.0,0.0005,120]
[356862675,1743342634930,-220.407905,0.0005,120]
[356862676,1743342634939,-151.0,0.0005,120]
[356862677,1743342634949,-151.0,0.0005,120]
[356862678,1743342634958,-292.037362,0.0005,120]
[356862679,1743342634968,-9000.0,0.0005,120]
[356862680,1743342634977,-9000.0,0.0005,120]
[356862681,1743342634986,-9000.0,0.0005,120]
[356862682,1743342634995,-9000.0,0.0005,120]
[356862683,1743342635005,-1096.850263,0.0005,120]
[356862684,1743342635015,-1096.850263,0.0005,120]
[356862685,1743342635024,-1096.850263,0.0005,120]
[356862686,1743342635034,-1096.850263,0.0005,120]
[356862687,1743342635043,-296.075494,0.0005,120]
[356862688,1743342635053,-296.075494,0.0005,120]
[356862689,1743342635062,-296.075494,0.0005,120]
[356862690,1743342635072,-296.075494,0.0005,120]
[356862691,1743342635081,-151.0,0.0005,120]
[356862692,1743342635091,-151.0,0.0005,120]
[356862693,1743342635101,-312.84,0.00050036,2]
[356862694,1743342635111,-208.21,0.00050036,2]
[356862695,1743342635120,-170.97,0.00050036,2]
[356862696,1743342635130,-500.0,0.00050136,34]
[356862697,1743342635140,-150.0,0.00050339,120]
[356862698,1743342635149,-2000.0,0.0005044,30]
[356862699,1743342635159,-2000.0,0.0005044,45]
[356862700,1743342635168,-29805.51285743,0.000505,120]
[356862701,1743342635178,-200.0,0.000505,120]
[356862702,1743342635188,-500.0,0.00050684,37]
[356862703,1743342635197,-301.01739337,0.000508,120]
[356862704,1743342635207,-1000.0,0.00050983,120]
[356862705,1743342635216,-757.05157365,0.00051,120]
[356862706,1743342635225,-253.40649,0.00051,120]
[356862707,1743342635235,-159.11102761,0.00051,120]
[356862708,1743342635244,-900.0,0.00051,2]
[356862709,1743342635253,-200.0,0.00051,120]
[356862710,1743342635263,-285.78,0.000512,120]
[356862711,1743342635272,-24008.97,0.000512,120]
[356862712,1743342635281,-500.0,0.00051232,40]
[356862713,1743342635290,-150.0,0.00051423,120]
[356862714,1743342635300,-2000.0,0.0005144,30]
[356862715,1743342635309,-2266.08,0.000515,14]
[356862716,1743342635319,-200.0,0.000515,120]
[356862717,1743342635328,-2000.0,0.0005159,30]
[356862718,1743342635338,-574.38,0.00051762,8]
[356862719,1743342635347,-211.29,0.00051762,8]
[356862720,1743342635356,-500.0,0.0005178,43]
[356862721,1743342635365,-2000.0,0.000518,2]
[356862722,1743342635375,-151.0,0.00051808,120]
[356862723,1743342635384,-182.32880343,0.000519,120]
[356862724,1743342635394,-182.32880343,0.000519,120]
[356862725,1743342635403,-182.32880343,0.000519,120]
[356862726,1743342635412,-182.32,0.000519,120]
[356862727,1743342635421,-154.70322716,0.000519,120]
[356862728,1743342635432,-154.70322716,0.000519,120]
[356862729,1743342635441,-154.70322716,0.000519,120]
[356862730,1743342635451,-154.70322716,0.000519,120]
[356862731,1743342635460,-154.70322716,0.000519,120]
[356862732,1743342635470,-154.70322716,0.000519,120]
[356862733,1743342635479,-662.87304947,0.000519,120]
[356862734,1743342635488,-662.87304947,0.000519,120]
[356862735,1743342635497,-662.87304947,0.000519,120]
[356862736,1743342635507,-662.87304947,0.000519,120]
[356862737,1743342635516,-662.87304947,0.000519,120]
[356862738,1743342635525,-662.87304947,0.000519,120]
[356862739,1743342635535,-662.87304947,0.000519,120]
[356862740,1743342635544,-662.87304947,0.000519,120]
[356862741,1743342635553,-662.87304947,0.000519,120]
[356862742,1743342635562,-662.87304947,0.000519,120]
[356862743,1743342635571,-662.87304947,0.000519,120]
[356862744,1743342635580,-662.87304947,0.000519,120]
[356862745,1743342635589,-662.87304947,0.000519,120]
[356862746,1743342635599,-662.87304947,0.000519,120]
[356862747,1743342635608,-662.87304947,0.000519,120]
[356862748,1743342635617,-662.87304947,0.000519,120]
[356862749,1743342635627,-662.87304947,0.000519,120]
[356862750,1743342635637,-662.87304947,0.000519,120]
[356862751,1743342635646,-662.87304947,0.000519,120]
[356862752,1743342635655,-662.87,0.000519,120]
[356862753,1743342635665,-1546.70378209,0.000519,120]
[356862754,1743342635674,-1546.70378209,0.000519,120]
[356862755,1743342635684,-1546.70378209,0.000519,120]
[356862756,1743342635693,-1546.70378209,0.000519,120]
[356862757,1743342635703,-1546.70378209,0.000519,120]
[356862758,1743342635712,-1546.70378209,0.000519,120]
[356862759,1743342635723,-1546.70378209,0.000519,120]
[356862760,1743342635732,-1546.70378209,0.000519,120]
[356862761,1743342635742,-1546.70378209,0.000519,120]
[356862762,1743342635751,-1546.70378209,0.000519,120]
[356862763,1743342635761,-1546.70378209,0.000519,120]
[356862764,1743342635771,-1546.70378209,0.000519,120]
[356862765,1743342635780,-283.15112366,0.000519,120]
[356862766,1743342635789,-283.15112366,0.000519,120]
[356862767,1743342635799,-283.15112366,0.000519,120]
[356862768,1743342635808,-283.15112366,0.000519,120]
[356862769,1743342635817,-283.15112366,0.000519,120]
[356862770,1743342635826,-283.15112366,0.000519,120]
[356862771,1743342635836,-283.15112366,0.000519,120]
[356862772,1743342635845,-283.15112366,0.000519,120]
[356862773,1743342635854,-283.15112366,0.000519,120]
[356862774,1743342635863,-283.15112366,0.000519,120]
[356862775,1743342635872,-283.15112366,0.000519,120]
[356862776,1743342635882,-283.15112366,0.000519,120]
[356862777,1743342635891,-283.15112366,0.000519,120]
[356862778,1743342635900,-283.15112366,0.000519,120]
[356862779,1743342635910,-283.15112366,0.000519,120]
[356862780,1743342635919,-283.15112366,0.000519,120]
[356862781,1743342635927,-283.15112366,0.000519,120]
[356862782,1743342635937,-283.15112366,0.000519,120]
[356862783,1743342635946,-283.15112366,0.000519,120]
[356862784,1743342635955,-283.15,0.000519,120]
[356862785,1743342635964,-660.68595521,0.000519,120]
[356862786,1743342635973,-660.68595521,0.000519,120]
[356862787,1743342635983,-660.68595521,0.000519,120]
[356862788,1743342635992,-660.68595521,0.000519,120]
[356862789,1743342636002,-660.68595521,0.000519,120]
[356862790,1743342636011,-660.68595521,0.000519,120]
[356862791,1743342636021,-660.68595521,0.000519,120]
[356862792,1743342636032,-660.68595521,0.000519,120]
[356862793,1743342636042,-660.68595521,0.000519,120]
[356862794,1743342636051,-660.68595521,0.000519,120]
[356862795,1743342636060,-660.68595521,0.000519,120]
[356862796,1743342636070,-660.68595521,0.000519,120]
[356862797,1743342636079,-154.70322716,0.00051905,120]
[356862798,1743342636089,-336.33303077,0.00051998,120]
[356862799,1743342636099,-9326.72518074,0.00052,30]
[356862800,1743342636114,-765.00594073,0.00052,30]
[356862801,1743342636123,-384.67505878,0.00052,120]
[356862802,1743342636133,-212.94856099,0.00052,120]
[356862803,1743342636142,-300.0,0.00052,120]
[356862804,1743342636151,-200.0,0.00052,120]
[356862805,1743342636161,-1546.70378209,0.00052018,120]
[356862806,1743342636171,-660.68595521,0.00052018,120]
[356862807,1743342636181,-296.39,0.00052062,2]
[356862808,1743342636190,-999.0,0.00052082,120]
[356862809,1743342636200,-999.0,0.00052082,120]
[356862810,1743342636210,-999.0,0.00052082,120]
[356862811,1743342636219,-999.0,0.00052082,120]
[356862812,1743342636229,-999.0,0.00052082,120]
[356862813,1743342636239,-999.0,0.00052082,120]
[356862814,1743342636249,-999.0,0.00052082,120]
[356862815,1743342636259,-999.0,0.00052082,120]
[356862816,1743342636268,-999.0,0.00052082,120]
[356862817,1743342636277,-999.0,0.00052082,120]
[356862818,1743342636286,-999.0,0.00052082,120]